[Event "Elitserien 2019/2020, round 1-3"]
[Site "Uppsala University, Gamla torget, Uppsala, Sweden"]
[Date "2019.10.18"]
[Round "1.18"]
[White "Hauge, Lars Oskar"]
[Black "Gajic, Mladen"]
[Result "1-0"]
[TimeControl "90 minutes for 40 moves + 30 minutes for the rest of the game + 30 seconds per move from move one."]
[WhiteTitle "IM"]
[BlackTitle "FM"]
[WhiteFideId "1509276"]
[BlackFideId "1709178"]
[WhiteElo "2483"]
[BlackElo "2303"]

1. f4 {[%clk 01:30:59]} b6 {[%clk 01:27:38]} {[%emt 00:03:23]} 2. e4 {[%clk
01:23:44]} {[%emt 00:07:44]} Bb7 {[%clk 01:25:06]} {[%emt 00:03:03]} 3. Nc3
{[%clk 01:23:50]} {[%emt 00:00:23]} e6 {[%clk 01:25:08]} {[%emt 00:00:27]} 4.
Nf3 {[%clk 01:08:50]} {[%emt 00:15:31]} Bb4 {[%clk 01:16:48]} {[%emt 00:08:50]}
5. Bd3 {[%clk 01:09:10]} {[%emt 00:00:10]} Na6 {[%clk 01:14:28]} {[%emt
00:02:51]} 6. a3 {[%clk 00:57:47]} {[%emt 00:11:53]} Bxc3 {[%clk 01:12:40]}
{[%emt 00:02:18]} 7. dxc3 {[%clk 00:58:05]} {[%emt 00:00:12]} Nc5 {[%clk
01:13:04]} {[%emt 00:00:05]} 8. Qe2 {[%clk 00:58:31]} {[%emt 00:00:04]} Ne7
{[%clk 01:08:36]} {[%emt 00:04:57]} 9. b4 {[%clk 00:54:41]} {[%emt 00:04:22]}
Nxd3+ {[%clk 01:07:19]} {[%emt 00:01:46]} 10. cxd3 {[%clk 00:55:01]} {[%emt
00:00:10]} O-O {[%clk 01:04:26]} {[%emt 00:03:23]} 11. O-O {[%clk 00:55:17]}
{[%emt 00:00:14]} f5 {[%clk 01:00:40]} {[%emt 00:04:15]} 12. c4 {[%clk
00:53:58]} {[%emt 00:01:50]} Qe8 {[%clk 00:58:58]} {[%emt 00:02:12]} 13. Qe3
{[%clk 00:48:38]} {[%emt 00:05:50]} fxe4 {[%clk 00:36:50]} {[%emt 00:22:39]} 14.
dxe4 {[%clk 00:48:55]} {[%emt 00:00:13]} Qg6 {[%clk 00:37:05]} {[%emt
00:00:15]} 15. Re1 {[%clk 00:46:50]} {[%emt 00:02:36]} d6 {[%clk 00:35:44]}
{[%emt 00:01:50]} 16. Ra2 {[%clk 00:46:45]} {[%emt 00:00:35]} a5 {[%clk
00:33:25]} {[%emt 00:02:50]} 17. Rf2 {[%clk 00:41:59]} {[%emt 00:05:16]} h6
{[%clk 00:30:13]} {[%emt 00:03:42]} 18. Bb2 {[%clk 00:41:40]} {[%emt 00:00:49]}
Qg4 {[%clk 00:23:42]} {[%emt 00:06:59]} 19. Nd4 {[%clk 00:30:21]} {[%emt
00:11:51]} e5 {[%clk 00:19:10]} {[%emt 00:05:03]} 20. fxe5 {[%clk 00:29:50]}
{[%emt 00:01:00]} Rxf2 {[%clk 00:18:50]} {[%emt 00:00:49]} 21. Qxf2 {[%clk
00:30:09]} {[%emt 00:00:11]} dxe5 {[%clk 00:19:08]} {[%emt 00:00:12]} 22. Nf3
{[%clk 00:30:20]} {[%emt 00:00:19]} Ng6 {[%clk 00:15:17]} {[%emt 00:04:21]} 23.
Nxe5 {[%clk 00:29:16]} {[%emt 00:01:34]} Nxe5 {[%clk 00:15:46]} {[%emt
00:00:01]} 24. Bxe5 {[%clk 00:29:37]} {[%emt 00:00:08]} axb4 {[%clk 00:15:59]}
{[%emt 00:00:18]} 25. axb4 {[%clk 00:28:43]} {[%emt 00:01:24]} Bxe4 {[%clk
00:15:20]} {[%emt 00:01:09]} 26. h3 {[%clk 00:25:43]} {[%emt 00:03:30]} Qg6
{[%clk 00:14:28]} {[%emt 00:01:21]} 27. Re3 {[%clk 00:24:08]} {[%emt 00:02:06]}
Qf5 {[%clk 00:12:01]} {[%emt 00:02:55]} 28. Qg3 {[%clk 00:17:44]} {[%emt
00:06:56]} g6 {[%clk 00:12:22]} {[%emt 00:00:09]} 29. Re2 {[%clk 00:18:00]}
{[%emt 00:00:14]} c5 {[%clk 00:07:36]} {[%emt 00:05:16]} 30. Bb2 {[%clk
00:14:30]} {[%emt 00:03:59]} Rd8 {[%clk 00:05:17]} {[%emt 00:02:50]} 31. Kh2
{[%clk 00:12:59]} {[%emt 00:02:01]} cxb4 {[%clk 00:02:04]} {[%emt 00:03:43]} 32.
Qc7 {[%clk 00:09:55]} {[%emt 00:03:34]} Qd7 {[%clk 00:01:07]} {[%emt 00:01:27]}
33. Qe5 {[%clk 00:08:43]} {[%emt 00:01:42]} Qd6 {[%clk 00:01:17]} {[%emt
00:00:20]} 34. Rxe4 {[%clk 00:08:39]} {[%emt 00:00:34]} Qxe5+ {[%clk 00:01:23]}
{[%emt 00:00:25]} 35. Rxe5 {[%clk 00:08:55]} {[%emt 00:00:13]} 1-0

[Event "Elitserien 2019/2020, round 1-3"]
[Site "Uppsala University, Gamla torget, Uppsala, Sweden"]
[Date "2019.10.18"]
[Round "1.19"]
[White "Gdanski, Jacek"]
[Black "Seo, Jung Min"]
[Result "1/2-1/2"]
[TimeControl "90 minutes for 40 moves + 30 minutes for the rest of the game + 30 seconds per move from move one."]
[WhiteTitle "GM"]
[BlackTitle "FM"]
[WhiteFideId "1100106"]
[BlackFideId "1734687"]
[WhiteElo "2476"]
[BlackElo "2437"]

1. e4 {[%clk 01:25:47]} {[%emt 00:02:40]} c5 {[%clk 01:30:01]} {[%emt
00:00:59]} 2. Nc3 {[%clk 01:25:30]} {[%emt 00:00:48]} Nc6 {[%clk 01:29:59]}
{[%emt 00:00:32]} 3. Nf3 {[%clk 01:25:54]} {[%emt 00:00:06]} d6 {[%clk
01:27:51]} {[%emt 00:02:38]} 4. d4 {[%clk 01:26:18]} {[%emt 00:00:06]} cxd4
{[%clk 01:28:18]} {[%emt 00:00:03]} 5. Nxd4 {[%clk 01:26:44]} {[%emt 00:00:03]}
Nf6 {[%clk 01:27:36]} {[%emt 00:01:13]} 6. Bc4 {[%clk 01:25:52]} {[%emt
00:01:21]} e6 {[%clk 01:27:16]} {[%emt 00:00:50]} 7. Be3 {[%clk 01:24:06]}
{[%emt 00:02:16]} Be7 {[%clk 01:26:02]} {[%emt 00:01:44]} 8. Bb3 {[%clk
01:20:33]} {[%emt 00:04:03]} a6 {[%clk 01:24:37]} {[%emt 00:01:55]} 9. O-O
{[%clk 01:20:03]} {[%emt 00:01:00]} O-O {[%clk 01:22:54]} {[%emt 00:02:12]} 10.
f4 {[%clk 01:20:28]} {[%emt 00:00:04]} Na5 {[%clk 01:14:28]} {[%emt 00:08:57]}
11. e5 {[%clk 01:10:31]} {[%emt 00:10:27]} Ne8 {[%clk 01:04:38]} {[%emt
00:10:21]} 12. Qf3 {[%clk 00:58:02]} {[%emt 00:12:58]} Bd7 {[%clk 00:40:53]}
{[%emt 00:24:15]} 13. Rad1 {[%clk 00:58:23]} {[%emt 00:00:09]} Qc7 {[%clk
00:40:03]} {[%emt 00:01:21]} 14. Nf5 {[%clk 00:37:27]} {[%emt 00:21:25]} exf5
{[%clk 00:17:05]} {[%emt 00:23:29]} 15. Nd5 {[%clk 00:37:48]} {[%emt 00:00:09]}
Bc6 {[%clk 00:17:19]} {[%emt 00:00:15]} 16. Nxc7 {[%clk 00:37:49]} {[%emt
00:00:28]} Bxf3 {[%clk 00:17:44]} {[%emt 00:00:06]} 17. Nxa8 {[%clk 00:36:44]}
{[%emt 00:01:34]} Bxd1 {[%clk 00:17:59]} {[%emt 00:00:16]} 18. Rxd1 {[%clk
00:37:05]} {[%emt 00:00:08]} Nxb3 {[%clk 00:16:55]} {[%emt 00:01:34]} 19. axb3
{[%clk 00:37:29]} {[%emt 00:00:06]} f6 {[%clk 00:16:28]} {[%emt 00:00:58]} 20.
e6 {[%clk 00:26:44]} {[%emt 00:11:15]} g6 {[%clk 00:16:03]} {[%emt 00:00:55]}
21. Bb6 {[%clk 00:20:45]} {[%emt 00:06:28]} Ng7 {[%clk 00:14:26]} {[%emt
00:02:08]} 22. Nc7 {[%clk 00:21:11]} {[%emt 00:00:03]} Bd8 {[%clk 00:14:33]}
{[%emt 00:00:23]} 23. Rxd6 {[%clk 00:20:11]} {[%emt 00:01:31]} Bxc7 {[%clk
00:14:57]} {[%emt 00:00:06]} 24. Bxc7 {[%clk 00:20:34]} {[%emt 00:00:06]} Re8
{[%clk 00:15:26]} {[%emt 00:00:02]} 25. Rb6 {[%clk 00:07:53]} {[%emt 00:13:10]}
Nxe6 {[%clk 00:14:35]} {[%emt 00:01:22]} 26. Rxb7 {[%clk 00:07:29]} {[%emt
00:00:54]} Rc8 {[%clk 00:11:29]} {[%emt 00:03:36]} 27. Rb8 {[%clk 00:06:43]}
{[%emt 00:01:16]} Rxb8 {[%clk 00:11:58]} {[%emt 00:00:01]} 28. Bxb8 {[%clk
00:07:10]} {[%emt 00:00:03]} Nd4 {[%clk 00:12:22]} {[%emt 00:00:06]} 29. c3
{[%clk 00:04:13]} {[%emt 00:03:27]} Nxb3 {[%clk 00:12:47]} {[%emt 00:00:04]} 30.
Kf2 {[%clk 00:04:22]} {[%emt 00:00:21]} Kf7 {[%clk 00:11:33]} {[%emt 00:01:45]}
31. Ke3 {[%clk 00:04:19]} {[%emt 00:00:33]} Ke6 {[%clk 00:11:55]} {[%emt
00:00:08]} 32. Kd3 {[%clk 00:03:29]} {[%emt 00:01:18]} Na5 {[%clk 00:05:29]}
{[%emt 00:06:58]} 33. Ba7 {[%clk 00:02:27]} {[%emt 00:01:31]} g5 {[%clk
00:04:28]} {[%emt 00:01:32]} 34. Be3 {[%clk 00:02:45]} {[%emt 00:00:11]} gxf4
{[%clk 00:03:33]} {[%emt 00:01:26]} 35. Bxf4 {[%clk 00:03:14]} {[%emt
00:00:01]} Kd5 {[%clk 00:03:53]} {[%emt 00:00:09]} 36. h3 {[%clk 00:02:36]}
{[%emt 00:01:09]} h5 {[%clk 00:03:12]} {[%emt 00:01:11]} 37. g3 {[%clk
00:02:43]} {[%emt 00:00:23]} Nc4 {[%clk 00:02:24]} {[%emt 00:01:18]} 38. b3
{[%clk 00:03:01]} {[%emt 00:00:12]} Ne5+ {[%clk 00:02:51]} {[%emt 00:00:03]} 39.
Ke3 {[%clk 00:03:25]} {[%emt 00:00:04]} Ng6 {[%clk 00:03:12]} {[%emt 00:00:10]}
40. c4+ {[%clk 00:01:56]} {[%emt 00:01:59]} Kc5 {[%clk 00:03:27]} {[%emt
00:00:15]} 41. Kd3 {[%clk 00:02:23]} {[%emt 00:00:03]} Ne5+ {[%clk 00:29:41]}
{[%emt 00:04:17]} 42. Kc3 {[%clk 00:32:18]} {[%emt 00:00:33]} Nf3 {[%clk
00:29:52]} {[%emt 00:00:21]} 43. b4+ {[%clk 00:31:02]} {[%emt 00:01:16]} Kc6
{[%clk 00:30:18]} {[%emt 00:00:05]} 44. Kb3 {[%clk 00:29:04]} {[%emt 00:02:56]}
Ne5 {[%clk 00:27:56]} {[%emt 00:02:52]} 45. Be3 {[%clk 00:29:04]} {[%emt
00:00:29]} Nd3 {[%clk 00:26:45]} {[%emt 00:01:41]} 46. Kc3 {[%clk 00:25:38]}
{[%emt 00:03:55]} Ne5 {[%clk 00:27:10]} {[%emt 00:00:06]} 47. Bh6 {[%clk
00:24:32]} {[%emt 00:01:36]} Nf7 {[%clk 00:25:56]} {[%emt 00:01:45]} 48. Bf4
{[%clk 00:23:56]} {[%emt 00:01:05]} Ne5 {[%clk 00:26:17]} {[%emt 00:00:09]} 49.
Kb3 {[%clk 00:23:41]} {[%emt 00:00:45]} Nd3 {[%clk 00:25:59]} {[%emt 00:00:48]}
50. Be3 {[%clk 00:19:31]} {[%emt 00:04:38]} Ne5 {[%clk 00:24:01]} {[%emt
00:02:30]} 51. Bd4 {[%clk 00:19:52]} {[%emt 00:00:08]} Nf3 {[%clk 00:22:56]}
{[%emt 00:01:35]} 52. Be3 {[%clk 00:14:35]} {[%emt 00:05:47]} Ne5 {[%clk
00:22:28]} {[%emt 00:00:59]} 53. h4 {[%clk 00:11:51]} {[%emt 00:03:14]} Ng4
{[%clk 00:21:15]} {[%emt 00:01:44]} 54. Bd4 {[%clk 00:12:08]} {[%emt 00:00:12]}
Ne5 {[%clk 00:21:12]} {[%emt 00:00:33]} 55. Kc3 {[%clk 00:12:33]} {[%emt
00:00:05]} Ng4 {[%clk 00:20:39]} {[%emt 00:01:04]} 56. Kd3 {[%clk 00:12:36]}
{[%emt 00:00:27]} Ne5+ {[%clk 00:21:05]} {[%emt 00:00:04]} 57. Ke3 {[%clk
00:12:14]} {[%emt 00:00:51]} Nxc4+ {[%clk 00:14:39]} {[%emt 00:06:57]} 58. Kf4
{[%clk 00:12:34]} {[%emt 00:00:10]} Kd5 {[%clk 00:15:07]} {[%emt 00:00:02]} 59.
Bxf6 {[%clk 00:11:18]} {[%emt 00:01:47]} Ke6 {[%clk 00:15:32]} {[%emt
00:00:04]} 60. Bd4 {[%clk 00:05:38]} {[%emt 00:06:11]} Nd2 {[%clk 00:15:38]}
{[%emt 00:00:24]} 61. Bc3 {[%clk 00:03:27]} {[%emt 00:02:38]} Ne4 {[%clk
00:15:47]} {[%emt 00:00:24]} 62. Ba1 {[%clk 00:03:06]} {[%emt 00:00:51]} Kf7
{[%clk 00:11:23]} {[%emt 00:04:54]} 63. Kxf5 {[%clk 00:02:52]} {[%emt
00:00:44]} Nxg3+ {[%clk 00:11:52]} {[%emt 00:00:01]} 64. Kf4 {[%clk 00:03:07]}
{[%emt 00:00:14]} Ne2+ {[%clk 00:11:36]} {[%emt 00:00:47]} 65. Kg5 {[%clk
00:03:24]} {[%emt 00:00:14]} Ng1 {[%clk 00:10:32]} {[%emt 00:01:33]} 66. Kxh5
{[%clk 00:02:33]} {[%emt 00:01:21]} Nf3 {[%clk 00:10:58]} {[%emt 00:00:04]} 67.
Kg4 {[%clk 00:02:31]} {[%emt 00:00:32]} Nxh4 {[%clk 00:11:15]} {[%emt
00:00:13]} 68. Kxh4 {[%clk 00:02:56]} {[%emt 00:00:05]} Ke6 {[%clk 00:11:43]}
{[%emt 00:00:02]} 69. Bd4 {[%clk 00:02:47]} {[%emt 00:00:39]} a5 {[%clk
00:12:04]} {[%emt 00:00:09]} 70. bxa5 {[%clk 00:02:43]} {[%emt 00:00:34]} Kd7
{[%clk 00:12:28]} {[%emt 00:00:07]} 71. a6 {[%clk 00:02:45]} {[%emt 00:00:27]}
Kc7 {[%clk 00:12:57]} {[%emt 00:00:01]} 72. Ba7 {[%clk 00:02:49]} {[%emt
00:00:25]} Kc6 {[%clk 00:13:21]} {[%emt 00:00:07]} 73. Bc5 {[%clk 00:02:49]}
{[%emt 00:00:30]} Kc7 {[%clk 00:13:46]} {[%emt 00:00:05]} 74. Bd6+ {[%clk
00:02:12]} {[%emt 00:01:07]} Kb6 {[%clk 00:14:13]} {[%emt 00:00:03]} 75. a7
{[%clk 00:02:36]} {[%emt 00:00:05]} Kxa7 {[%clk 00:14:41]} {[%emt 00:00:03]}
1/2-1/2

[Event "Elitserien 2019/2020, round 1-3"]
[Site "Uppsala University, Gamla torget, Uppsala, Sweden"]
[Date "2019.10.18"]
[Round "1.20"]
[White "Cederstam Barsk, Carl"]
[Black "Ornstein, Axel"]
[Result "1-0"]
[TimeControl "90 minutes for 40 moves + 30 minutes for the rest of the game + 30 seconds per move from move one."]
[WhiteTitle "FM"]
[BlackTitle "IM"]
[WhiteFideId "1713329"]
[BlackFideId "1700111"]
[WhiteElo "2344"]
[BlackElo "2297"]

1. Nf3 {[%clk 01:30:57]} {[%emt 00:00:02]} Nf6 {[%clk 01:26:32]} {[%emt
00:04:28]} 2. c4 {[%clk 01:31:18]} {[%emt 00:00:09]} c5 {[%clk 01:26:54]}
{[%emt 00:00:08]} 3. Nc3 {[%clk 01:31:42]} {[%emt 00:00:07]} e6 {[%clk
01:26:38]} {[%emt 00:00:47]} 4. g3 {[%clk 01:31:57]} {[%emt 00:00:14]} b6
{[%clk 01:27:03]} {[%emt 00:00:05]} 5. Bg2 {[%clk 01:32:08]} {[%emt 00:00:18]}
Bb7 {[%clk 01:27:27]} {[%emt 00:00:08]} 6. O-O {[%clk 01:32:13]} {[%emt
00:00:24]} Be7 {[%clk 01:27:51]} {[%emt 00:00:06]} 7. d4 {[%clk 01:31:27]}
{[%emt 00:01:16]} cxd4 {[%clk 01:28:14]} {[%emt 00:00:07]} 8. Qxd4 {[%clk
01:31:52]} {[%emt 00:00:05]} Nc6 {[%clk 01:25:32]} {[%emt 00:03:13]} 9. Qf4
{[%clk 01:28:56]} {[%emt 00:03:24]} O-O {[%clk 01:25:47]} {[%emt 00:00:17]} 10.
Rd1 {[%clk 01:27:30]} {[%emt 00:01:55]} Qb8 {[%clk 01:26:11]} {[%emt 00:00:06]}
11. e4 {[%clk 01:16:59]} {[%emt 00:11:00]} d6 {[%clk 01:25:45]} {[%emt
00:00:57]} 12. b3 {[%clk 01:16:09]} {[%emt 00:01:20]} Rd8 {[%clk 01:26:10]}
{[%emt 00:00:05]} 13. Bb2 {[%clk 01:12:42]} {[%emt 00:03:57]} h6 {[%clk
01:17:59]} {[%emt 00:08:42]} 14. Rd2 {[%clk 01:03:22]} {[%emt 00:09:49]} a6
{[%clk 01:06:11]} {[%emt 00:12:18]} 15. Qe3 {[%clk 00:51:31]} {[%emt 00:12:20]}
Qa7 {[%clk 00:58:59]} {[%emt 00:07:43]} 16. Qe2 {[%clk 00:48:51]} {[%emt
00:03:10]} Bf8 {[%clk 00:39:42]} {[%emt 00:19:46]} 17. Rad1 {[%clk 00:47:50]}
{[%emt 00:01:31]} Rac8 {[%clk 00:38:54]} {[%emt 00:01:19]} 18. Ba3 {[%clk
00:30:33]} {[%emt 00:17:48]} Ne8 {[%clk 00:39:07]} {[%emt 00:00:16]} 19. Na4
{[%clk 00:22:03]} {[%emt 00:09:00]} Ba8 {[%clk 00:38:48]} {[%emt 00:00:48]} 20.
e5 {[%clk 00:19:50]} {[%emt 00:02:43]} Qb8 {[%clk 00:34:31]} {[%emt 00:04:48]}
21. Qe3 {[%clk 00:18:40]} {[%emt 00:01:40]} Nxe5 {[%clk 00:18:48]} {[%emt
00:16:13]} 22. Nxe5 {[%clk 00:17:30]} {[%emt 00:01:39]} Bxg2 {[%clk 00:19:13]}
{[%emt 00:00:05]} 23. Kxg2 {[%clk 00:12:59]} {[%emt 00:05:01]} dxe5 {[%clk
00:19:10]} {[%emt 00:00:33]} 24. Bxf8 {[%clk 00:12:51]} {[%emt 00:00:38]} Rxd2
{[%clk 00:18:48]} {[%emt 00:00:50]} 25. Rxd2 {[%clk 00:12:52]} {[%emt
00:00:31]} Kxf8 {[%clk 00:19:09]} {[%emt 00:00:09]} 26. Nxb6 {[%clk 00:11:53]}
{[%emt 00:01:29]} Qb7+ {[%clk 00:19:26]} {[%emt 00:00:13]} 27. Kg1 {[%clk
00:11:58]} {[%emt 00:00:25]} Rc7 {[%clk 00:19:44]} {[%emt 00:00:13]} 28. c5
{[%clk 00:11:31]} {[%emt 00:00:57]} f6 {[%clk 00:19:32]} {[%emt 00:00:42]} 29.
Qe2 {[%clk 00:08:56]} {[%emt 00:03:01]} Kf7 {[%clk 00:19:05]} {[%emt 00:01:00]}
30. b4 {[%clk 00:06:04]} {[%emt 00:03:22]} e4 {[%clk 00:19:11]} {[%emt
00:00:24]} 31. Qh5+ {[%clk 00:06:08]} {[%emt 00:00:26]} Ke7 {[%clk 00:18:34]}
{[%emt 00:01:07]} 32. Re2 {[%clk 00:04:19]} {[%emt 00:02:19]} f5 {[%clk
00:17:47]} {[%emt 00:01:17]} 33. Qg6 {[%clk 00:04:37]} {[%emt 00:00:12]} Qc6
{[%clk 00:10:22]} {[%emt 00:07:56]} 34. g4 {[%clk 00:03:56]} {[%emt 00:01:11]}
Qb5 {[%clk 00:10:45]} {[%emt 00:00:07]} 35. Re3 {[%clk 00:03:40]} {[%emt
00:00:46]} Qxb4 {[%clk 00:08:37]} {[%emt 00:02:38]} 36. gxf5 {[%clk 00:04:03]}
{[%emt 00:00:07]} Qb1+ {[%clk 00:04:08]} {[%emt 00:04:58]} 37. Kg2 {[%clk
00:04:32]} {[%emt 00:00:02]} Qxa2 {[%clk 00:04:32]} {[%emt 00:00:06]} 38. Rxe4
{[%clk 00:04:06]} {[%emt 00:00:56]} Rc6 {[%clk 00:04:58]} {[%emt 00:00:05]} 39.
fxe6 {[%clk 00:03:43]} {[%emt 00:00:53]} Rxe6 {[%clk 00:05:01]} {[%emt
00:00:26]} 40. Nc8+ {[%clk 00:03:50]} {[%emt 00:00:23]} Kd7 {[%clk 00:05:21]}
{[%emt 00:00:10]} 41. Qf7+ {[%clk 00:27:46]} {[%emt 00:06:34]} Kxc8 {[%clk
00:35:48]} {[%emt 00:00:03]} 42. Rxe6 {[%clk 00:26:20]} {[%emt 00:01:56]} Qd5+
{[%clk 00:36:12]} {[%emt 00:00:06]} 43. Kg3 {[%clk 00:26:20]} {[%emt 00:00:29]}
Qg5+ {[%emt 00:01:37]} 44. Kh3 {[%clk 00:26:13]} {[%emt 00:00:33]} 1-0

[Event "Elitserien 2019/2020, round 1-3"]
[Site "Uppsala University, Gamla torget, Uppsala, Sweden"]
[Date "2019.10.18"]
[Round "1.21"]
[White "Vernersson, Per"]
[Black "Lokander, Martin"]
[Result "0-1"]
[TimeControl "90 minutes for 40 moves + 30 minutes for the rest of the game + 30 seconds per move from move one."]
[BlackTitle "IM"]
[WhiteFideId "1700863"]
[BlackFideId "1709569"]
[WhiteElo "2275"]
[BlackElo "2396"]

1. d4 {[%clk 01:30:53]} {[%emt 00:00:05]} Nf6 {[%clk 01:30:54]} {[%emt
00:00:07]} 2. c4 {[%clk 01:31:14]} {[%emt 00:00:09]} c5 {[%clk 01:30:21]}
{[%emt 00:01:03]} 3. d5 {[%clk 01:30:56]} {[%emt 00:00:48]} b5 {[%clk
01:29:55]} {[%emt 00:00:57]} 4. cxb5 {[%clk 01:30:46]} {[%emt 00:00:40]} a6
{[%clk 01:30:18]} {[%emt 00:00:06]} 5. bxa6 {[%clk 01:30:51]} {[%emt 00:00:25]}
g6 {[%clk 01:30:44]} {[%emt 00:00:05]} 6. Nc3 {[%clk 01:30:46]} {[%emt
00:00:33]} Bg7 {[%clk 01:31:08]} {[%emt 00:00:07]} 7. Nf3 {[%clk 01:24:04]}
{[%emt 00:07:12]} O-O {[%clk 01:29:50]} {[%emt 00:01:48]} 8. e4 {[%clk
01:13:26]} {[%emt 00:11:07]} Qa5 {[%clk 01:29:52]} {[%emt 00:00:28]} 9. Bd2
{[%clk 01:13:20]} {[%emt 00:00:36]} Bxa6 {[%clk 01:30:16]} {[%emt 00:00:06]} 10.
Bxa6 {[%clk 01:12:45]} {[%emt 00:01:05]} Qxa6 {[%clk 01:30:41]} {[%emt
00:00:05]} 11. Qe2 {[%clk 01:12:53]} {[%emt 00:00:22]} e6 {[%clk 01:31:08]}
{[%emt 00:00:04]} 12. Qxa6 {[%clk 01:11:39]} {[%emt 00:01:44]} Nxa6 {[%clk
01:31:34]} {[%emt 00:00:03]} 13. O-O {[%clk 01:09:18]} {[%emt 00:02:52]} Nb4
{[%clk 01:29:33]} {[%emt 00:02:30]} 14. d6 {[%clk 00:58:45]} {[%emt 00:11:02]}
Nd3 {[%clk 01:23:18]} {[%emt 00:06:45]} 15. Rab1 {[%clk 00:56:46]} {[%emt
00:02:29]} Rfb8 {[%clk 01:22:24]} {[%emt 00:01:24]} 16. b3 {[%clk 00:48:51]}
{[%emt 00:08:25]} Ne8 {[%clk 01:16:14]} {[%emt 00:06:41]} 17. Na4 {[%clk
00:44:27]} {[%emt 00:04:54]} Nxd6 {[%clk 01:14:53]} {[%emt 00:01:51]} 18. Be3
{[%clk 00:41:18]} {[%emt 00:03:39]} Nxe4 {[%clk 01:13:43]} {[%emt 00:01:41]} 19.
Rbd1 {[%clk 00:40:54]} {[%emt 00:00:53]} Rxa4 {[%clk 01:02:45]} {[%emt
00:11:28]} 20. bxa4 {[%clk 00:37:00]} {[%emt 00:04:25]} c4 {[%clk 01:02:56]}
{[%emt 00:00:19]} 21. a5 {[%clk 00:36:48]} {[%emt 00:00:41]} Ra8 {[%clk
00:59:48]} {[%emt 00:03:38]} 22. Rb1 {[%clk 00:35:36]} {[%emt 00:01:42]} Nb2
{[%clk 00:46:19]} {[%emt 00:13:59]} 23. Rfc1 {[%clk 00:23:55]} {[%emt
00:12:10]} d5 {[%clk 00:43:41]} {[%emt 00:03:09]} 24. Bb6 {[%clk 00:23:01]}
{[%emt 00:01:24]} Nd3 {[%clk 00:41:52]} {[%emt 00:02:20]} 25. Rc2 {[%clk
00:23:09]} {[%emt 00:00:22]} Nc3 {[%clk 00:42:20]} {[%emt 00:00:03]} 26. Rf1
{[%clk 00:22:42]} {[%emt 00:00:56]} Nb4 {[%clk 00:42:06]} {[%emt 00:00:44]} 27.
Rd2 {[%clk 00:18:57]} {[%emt 00:04:15]} e5 {[%clk 00:37:06]} {[%emt 00:05:31]}
28. a3 {[%clk 00:18:45]} {[%emt 00:00:40]} Nc6 {[%clk 00:35:58]} {[%emt
00:01:39]} 29. Rc1 {[%clk 00:16:23]} {[%emt 00:02:51]} e4 {[%clk 00:34:02]}
{[%emt 00:02:27]} 30. Ng5 {[%clk 00:15:25]} {[%emt 00:01:28]} h6 {[%clk
00:31:51]} {[%emt 00:02:42]} 31. Nh3 {[%clk 00:15:04]} {[%emt 00:00:51]} d4
{[%clk 00:31:13]} {[%emt 00:01:09]} 32. Kf1 {[%clk 00:10:29]} {[%emt 00:05:04]}
d3 {[%clk 00:27:06]} {[%emt 00:04:37]} 33. f3 {[%clk 00:10:02]} {[%emt
00:00:57]} Nxa5 {[%clk 00:25:56]} {[%emt 00:01:40]} 34. Bxa5 {[%clk 00:09:16]}
{[%emt 00:01:15]} Rxa5 {[%clk 00:26:04]} {[%emt 00:00:22]} 35. fxe4 {[%clk
00:09:39]} {[%emt 00:00:08]} Nxe4 {[%clk 00:26:08]} {[%emt 00:00:26]} 36. Rdd1
{[%clk 00:09:10]} {[%emt 00:00:59]} Rf5+ {[%clk 00:26:16]} {[%emt 00:00:23]} 37.
Kg1 {[%clk 00:08:44]} {[%emt 00:00:56]} Nc3 {[%clk 00:26:26]} {[%emt 00:00:19]}
0-1